[Event "Titled Tuesday Blitz August 15 Late 2023"]
[White "Morgunov, Marc"]
[Black "Djordjevic, Vuk"]
[WhiteFideId "1640305"]
[BlackFideId "902098"]
[WhiteElo "2514"]
[BlackElo "2697"]
[Result "0-1"]
[Round "6"]
[TimeControl "180+1"]
[Date "2023.08.15"]
[WhiteClock "0:00:05"]
[BlackClock "0:00:04"]
[Board "51"]

1. e4 {[%clk 0:03:00]}  e6 {[%clk 0:02:59]} 2. d4 {[%clk 0:03:00]}  d5 {[%clk 0:03:00]} 3. Nc3 {[%clk 0:03:00]}  Bb4 {[%clk 0:03:00]} 4. e5 {[%clk 0:03:00]}  c5 {[%clk 0:03:00]} 5. a3 {[%clk 0:03:00]}  Bxc3+ {[%clk 0:03:01]} 6. bxc3 {[%clk 0:03:01]}  Ne7 {[%clk 0:03:01]} 7. Qg4 {[%clk 0:03:01]}  Qa5 {[%clk 0:03:02]} 8. Bd2 {[%clk 0:02:57]}  Nf5 {[%clk 0:02:53]} 9. Bd3 {[%clk 0:02:54]}  h5 {[%clk 0:02:50]} 10. Qg5 {[%clk 0:02:52]}  Qd8 {[%clk 0:02:47]} 11. Qf4 {[%clk 0:02:43]}  Nc6 {[%clk 0:02:24]} 12. Nf3 {[%clk 0:02:41]}  c4 {[%clk 0:02:19]} 13. Bxf5 {[%clk 0:02:41]}  exf5 {[%clk 0:02:20]} 14. h4 {[%clk 0:02:41]}  Be6 {[%clk 0:02:19]} 15. Qg3 {[%clk 0:02:35]}  g6 {[%clk 0:01:55]} 16. O-O {[%clk 0:02:35]}  Qa5 {[%clk 0:01:51]} 17. a4 {[%clk 0:02:34]}  O-O-O {[%clk 0:01:50]} 18. Rfb1 {[%clk 0:02:33]}  a6 {[%clk 0:01:41]} 19. Ra3 {[%clk 0:02:23]}  Kc7 {[%clk 0:01:26]} 20. Ng5 {[%clk 0:02:05]}  Rhe8 {[%clk 0:01:18]} 21. Nxf7 {[%clk 0:02:04]}  Bxf7 {[%clk 0:00:48]} 22. e6+ {[%clk 0:02:04]}  Kc8 {[%clk 0:00:48]} 23. exf7 {[%clk 0:02:03]}  Rf8 {[%clk 0:00:48]} 24. Qxg6 {[%clk 0:01:56]}  Qc7 {[%clk 0:00:39]} 25. Qxf5+ {[%clk 0:01:53]}  Qd7 {[%clk 0:00:39]} 26. Qxd7+ {[%clk 0:01:46]}  Rxd7 {[%clk 0:00:39]} 27. Re1 {[%clk 0:01:44]}  Rdxf7 {[%clk 0:00:39]} 28. f3 {[%clk 0:01:40]}  Kd7 {[%clk 0:00:23]} 29. Raa1 {[%clk 0:01:38]}  b5 {[%clk 0:00:20]} 30. axb5 {[%clk 0:01:23]}  axb5 {[%clk 0:00:21]} 31. Bg5 {[%clk 0:00:46]}  Rb8 {[%clk 0:00:18]} 32. Kf2 {[%clk 0:00:42]}  b4 {[%clk 0:00:07]} 33. cxb4 {[%clk 0:00:42]}  Rxb4 {[%clk 0:00:03]} 34. Reb1 {[%clk 0:00:42]}  Kd6 {[%clk 0:00:02]} 35. Rxb4 {[%clk 0:00:32]}  Nxb4 {[%clk 0:00:03]} 36. c3 {[%clk 0:00:32]}  Nd3+ {[%clk 0:00:03]} 37. Ke3 {[%clk 0:00:33]}  Rb7 {[%clk 0:00:03]} 38. Ra6+ {[%clk 0:00:31]}  Kd7 {[%clk 0:00:03]} 39. Bf4 {[%clk 0:00:24]}  Rb1 {[%clk 0:00:03]} 40. Bg3 {[%clk 0:00:17]}  Rb2 {[%clk 0:00:03]} 41. Rd6+ {[%clk 0:00:17]}  Ke7 {[%clk 0:00:03]} 42. Rxd5 {[%clk 0:00:18]}  Rxg2 {[%clk 0:00:03]} 43. Be5 {[%clk 0:00:13]}  Rc2 {[%clk 0:00:04]} 44. f4 {[%clk 0:00:11]}  Rxc3 {[%clk 0:00:04]} 45. Ke4 {[%clk 0:00:10]}  Rc1 {[%clk 0:00:03]} 46. f5 {[%clk 0:00:09]}  Re1+ {[%clk 0:00:04]} 47. Kf3 {[%clk 0:00:10]}  Rf1+ {[%clk 0:00:04]} 48. Ke4 {[%clk 0:00:09]}  Nf2+ {[%clk 0:00:04]} 49. Kf3 {[%clk 0:00:08]}  Ng4+ {[%clk 0:00:04]} 50. Ke4 {[%clk 0:00:03]}  Re1+ {[%clk 0:00:04]} 51. Kf4 {[%clk 0:00:04]}  Rf1+ {[%clk 0:00:04]} 52. Kg5 {[%clk 0:00:04]}  Ne3 {[%clk 0:00:04]} 53. f6+ {[%clk 0:00:04]}  Ke8 {[%clk 0:00:04]} 54. Ra5 {[%clk 0:00:04]}  c3 {[%clk 0:00:05]} 55. Ra8+ {[%clk 0:00:04]}  Kd7 {[%clk 0:00:05]} 56. Ra7+ {[%clk 0:00:04]}  Ke6 {[%clk 0:00:05]} 57. Re7+ {[%clk 0:00:04]}  Kd5 {[%clk 0:00:05]} 58. f7 {[%clk 0:00:04]}  c2 {[%clk 0:00:05]} 59. Rc7 {[%clk 0:00:04]}  Nc4 {[%clk 0:00:04]} 60. Rxc4 {[%clk 0:00:02]}  Kxc4 {[%clk 0:00:04]} 61. Bf4 {[%clk 0:00:03]}  Rxf4 {[%clk 0:00:04]} 62. Kxf4 {[%clk 0:00:02]}  c1=Q+ {[%clk 0:00:04]} 63. Ke5 {[%clk 0:00:03]}  Qf1 {[%clk 0:00:03]} 64. Ke6 {[%clk 0:00:04]}  Qf4 {[%clk 0:00:02]} 65. Ke7 {[%clk 0:00:05]}  Qe4+ {[%clk 0:00:02]} 66. Kd7 {[%clk 0:00:04]}  Qf5+ {[%clk 0:00:02]} 67. Ke7 {[%clk 0:00:05]}  Qe4+ {[%clk 0:00:03]} 68. Kd7 {[%clk 0:00:05]}  Qxd4+ {[%clk 0:00:03]} 69. Ke7 {[%clk 0:00:05]}  Qxh4+ {[%clk 0:00:03]} 70. Ke8 {[%clk 0:00:05]}  Qe4+ {[%clk 0:00:03]} 71. Kd7 {[%clk 0:00:05]}  Qf5+ {[%clk 0:00:04]} 72. Ke7 {[%clk 0:00:06]}  Qxf7+ {[%clk 0:00:04]} 73. Kxf7 {[%clk 0:00:05]}  h4 {[%clk 0:00:04]} 0-1


[Site "https://www.chess.com"]

[Event "Titled Tuesday Blitz August 15 Late 2023"]
[White "Arutla, Aditya"]
[Black "Korchmar, Vasiliy"]
[WhiteFideId "30961998"]
[BlackFideId "24131750"]
[WhiteElo "2511"]
[BlackElo "2688"]
[Result "0-1"]
[Round "6"]
[TimeControl "180+1"]
[Date "2023.08.15"]
[WhiteClock "0:00:26"]
[BlackClock "0:01:20"]
[Board "52"]

1. d4 {[%clk 0:03:00]}  d5 {[%clk 0:02:59]} 2. Bf4 {[%clk 0:03:00]}  Nf6 {[%clk 0:02:59]} 3. e3 {[%clk 0:03:01]}  c5 {[%clk 0:02:59]} 4. Nf3 {[%clk 0:03:01]}  Nc6 {[%clk 0:02:59]} 5. Nbd2 {[%clk 0:03:02]}  cxd4 {[%clk 0:02:59]} 6. exd4 {[%clk 0:03:02]}  Qb6 {[%clk 0:02:59]} 7. Nb3 {[%clk 0:03:02]}  Bg4 {[%clk 0:02:59]} 8. c3 {[%clk 0:02:57]}  e6 {[%clk 0:02:59]} 9. a4 {[%clk 0:02:57]}  Bxf3 {[%clk 0:02:58]} 10. gxf3 {[%clk 0:02:55]}  a6 {[%clk 0:02:58]} 11. a5 {[%clk 0:02:54]}  Qd8 {[%clk 0:02:58]} 12. Bd3 {[%clk 0:02:50]}  Bd6 {[%clk 0:02:49]} 13. Bxd6 {[%clk 0:02:48]}  Qxd6 {[%clk 0:02:50]} 14. Nc5 {[%clk 0:02:48]}  O-O {[%clk 0:02:36]} 15. Nxb7 {[%clk 0:02:45]}  Qf4 {[%clk 0:02:30]} 16. Qd2 {[%clk 0:02:30]}  Qxf3 {[%clk 0:02:28]} 17. Rg1 {[%clk 0:02:17]}  Ne4 {[%clk 0:02:19]} 18. Qe3 {[%clk 0:02:08]}  Qxe3+ {[%clk 0:02:07]} 19. fxe3 {[%clk 0:02:09]}  Rfb8 {[%clk 0:02:08]} 20. Bxe4 {[%clk 0:01:46]}  Rxb7 {[%clk 0:02:07]} 21. Bd3 {[%clk 0:01:39]}  Rxb2 {[%clk 0:02:07]} 22. Rb1 {[%clk 0:01:29]}  Rxb1+ {[%clk 0:02:05]} 23. Bxb1 {[%clk 0:01:30]}  Nxa5 {[%clk 0:02:06]} 24. Kd2 {[%clk 0:01:26]}  Nc4+ {[%clk 0:02:05]} 25. Ke2 {[%clk 0:01:23]}  Rb8 {[%clk 0:02:03]} 26. Bd3 {[%clk 0:01:24]}  Rb2+ {[%clk 0:02:03]} 27. Kf3 {[%clk 0:01:24]}  Rxh2 {[%clk 0:01:54]} 28. Bxc4 {[%clk 0:01:20]}  dxc4 {[%clk 0:01:55]} 29. Ra1 {[%clk 0:01:20]}  Rc2 {[%clk 0:01:52]} 30. Rxa6 {[%clk 0:01:18]}  h5 {[%clk 0:01:52]} 31. Ra3 {[%clk 0:01:13]}  g6 {[%clk 0:01:48]} 32. e4 {[%clk 0:01:13]}  Kg7 {[%clk 0:01:47]} 33. d5 {[%clk 0:01:11]}  exd5 {[%clk 0:01:47]} 34. exd5 {[%clk 0:01:12]}  Rd2 {[%clk 0:01:40]} 35. Ke4 {[%clk 0:01:05]}  h4 {[%clk 0:01:37]} 36. Ke5 {[%clk 0:00:52]}  h3 {[%clk 0:01:31]} 37. Kd6 {[%clk 0:00:49]}  g5 {[%clk 0:01:28]} 38. Ra1 {[%clk 0:00:47]}  g4 {[%clk 0:01:27]} 39. Rg1 {[%clk 0:00:44]}  f5 {[%clk 0:01:26]} 40. Ke5 {[%clk 0:00:41]}  Kg6 {[%clk 0:01:26]} 41. d6 {[%clk 0:00:40]}  h2 {[%clk 0:01:26]} 42. Rh1 {[%clk 0:00:37]}  g3 {[%clk 0:01:26]} 43. Kf4 {[%clk 0:00:29]}  g2 {[%clk 0:01:26]} 44. Rxh2 {[%clk 0:00:29]}  g1=Q {[%clk 0:01:20]} 45. Rxd2 {[%clk 0:00:26]}  Qg5+ {[%clk 0:01:20]} 0-1


[Site "https://www.chess.com"]

[Event "Titled Tuesday Blitz August 15 Late 2023"]
[White "Dourerassou, Jonathan"]
[Black "Peycheva, Gergana"]
[WhiteFideId "628050"]
[BlackFideId "2916711"]
[WhiteElo "2675"]
[BlackElo "2510"]
[Result "1/2-1/2"]
[Round "6"]
[TimeControl "180+1"]
[Date "2023.08.15"]
[WhiteClock "0:00:29"]
[BlackClock "0:00:06"]
[Board "53"]

1. d4 {[%clk 0:03:00]}  d5 {[%clk 0:02:57]} 2. Nf3 {[%clk 0:02:59]}  Nf6 {[%clk 0:02:56]} 3. Bf4 {[%clk 0:03:00]}  e6 {[%clk 0:02:50]} 4. e3 {[%clk 0:02:59]}  Bd6 {[%clk 0:02:50]} 5. Bg3 {[%clk 0:02:58]}  O-O {[%clk 0:02:50]} 6. Nbd2 {[%clk 0:02:58]}  c5 {[%clk 0:02:50]} 7. c3 {[%clk 0:02:58]}  Qc7 {[%clk 0:02:50]} 8. Bd3 {[%clk 0:02:57]}  Nbd7 {[%clk 0:02:50]} 9. Qe2 {[%clk 0:02:57]}  Bxg3 {[%clk 0:02:40]} 10. hxg3 {[%clk 0:02:56]}  e5 {[%clk 0:02:40]} 11. dxe5 {[%clk 0:02:31]}  Nxe5 {[%clk 0:02:41]} 12. Nxe5 {[%clk 0:02:31]}  Qxe5 {[%clk 0:02:42]} 13. Nf3 {[%clk 0:02:31]}  Qc7 {[%clk 0:02:39]} 14. O-O-O {[%clk 0:02:30]}  h6 {[%clk 0:02:35]} 15. Bc2 {[%clk 0:02:26]}  Bg4 {[%clk 0:02:25]} 16. Rh4 {[%clk 0:02:25]}  Rfe8 {[%clk 0:02:19]} 17. Qd3 {[%clk 0:02:20]}  Bh5 {[%clk 0:01:52]} 18. Rxh5 {[%clk 0:02:17]}  Nxh5 {[%clk 0:01:51]} 19. Qh7+ {[%clk 0:02:16]}  Kf8 {[%clk 0:01:51]} 20. Nh4 {[%clk 0:01:54]}  Qe5 {[%clk 0:00:45]} 21. Nf5 {[%clk 0:01:43]}  g6 {[%clk 0:00:40]} 22. Rxd5 {[%clk 0:01:40]}  Qf6 {[%clk 0:00:28]} 23. Rd6 {[%clk 0:01:35]}  Re6 {[%clk 0:00:20]} 24. Rxe6 {[%clk 0:01:27]}  fxe6 {[%clk 0:00:20]} 25. Qxh6+ {[%clk 0:01:22]}  Kg8 {[%clk 0:00:13]} 26. Nh4 {[%clk 0:00:56]}  Qxf2 {[%clk 0:00:11]} 27. Qxg6+ {[%clk 0:00:49]}  Ng7 {[%clk 0:00:11]} 28. Qh7+ {[%clk 0:00:48]}  Kf7 {[%clk 0:00:11]} 29. Qg6+ {[%clk 0:00:43]}  Kg8 {[%clk 0:00:11]} 30. Qh7+ {[%clk 0:00:32]}  Kf7 {[%clk 0:00:11]} 31. Bg6+ {[%clk 0:00:31]}  Kf6 {[%clk 0:00:10]} 32. Qh6 {[%clk 0:00:31]}  Qe1+ {[%clk 0:00:06]} 33. Kc2 {[%clk 0:00:31]}  Qe2+ {[%clk 0:00:06]} 34. Kb3 {[%clk 0:00:27]}  Qb5+ {[%clk 0:00:06]} 35. Ka3 {[%clk 0:00:27]}  Qa5+ {[%clk 0:00:05]} 36. Kb3 {[%clk 0:00:28]}  Qb5+ {[%clk 0:00:06]} 37. Kc2 {[%clk 0:00:29]}  Qe2+ {[%clk 0:00:05]} 38. Kc1 {[%clk 0:00:30]}  Qe1+ {[%clk 0:00:06]} 39. Kc2 {[%clk 0:00:29]}  Qe2+ {[%clk 0:00:06]} 1/2-1/2


[Site "https://www.chess.com"]

[Event "Titled Tuesday Blitz August 15 Late 2023"]
[White "arenal72"]
[Black "Bjelobrk, Igor"]
[BlackFideId "4300726"]
[WhiteElo "2499"]
[BlackElo "2673"]
[Result "0-1"]
[Round "6"]
[TimeControl "180+1"]
[Date "2023.08.15"]
[WhiteClock "0:00:00"]
[BlackClock "0:00:11"]
[Board "55"]

1. e4 {[%clk 0:03:00]}  e6 {[%clk 0:02:58]} 2. d4 {[%clk 0:02:59]}  d5 {[%clk 0:02:58]} 3. e5 {[%clk 0:02:54]}  c5 {[%clk 0:02:57]} 4. c3 {[%clk 0:02:52]}  Nc6 {[%clk 0:02:57]} 5. Nf3 {[%clk 0:02:52]}  Qb6 {[%clk 0:02:56]} 6. Bd3 {[%clk 0:02:41]}  cxd4 {[%clk 0:02:49]} 7. O-O {[%clk 0:02:40]}  Bd7 {[%clk 0:02:46]} 8. Nbd2 {[%clk 0:02:27]}  Nge7 {[%clk 0:02:44]} 9. c4 {[%clk 0:02:26]}  a5 {[%clk 0:02:37]} 10. a3 {[%clk 0:02:16]}  a4 {[%clk 0:02:20]} 11. Re1 {[%clk 0:02:13]}  h6 {[%clk 0:02:07]} 12. Qc2 {[%clk 0:01:33]}  Na5 {[%clk 0:02:02]} 13. c5 {[%clk 0:01:14]}  Qc7 {[%clk 0:01:53]} 14. Nxd4 {[%clk 0:01:14]}  Nec6 {[%clk 0:00:42]} 15. Nb5 {[%clk 0:01:12]}  Qd8 {[%clk 0:00:41]} 16. Nd6+ {[%clk 0:01:00]}  Bxd6 {[%clk 0:00:41]} 17. exd6 {[%clk 0:00:59]}  b6 {[%clk 0:00:35]} 18. cxb6 {[%clk 0:00:36]}  Qxb6 {[%clk 0:00:35]} 19. Qxa4 {[%clk 0:00:26]}  Ne5 {[%clk 0:00:29]} 20. Qc2 {[%clk 0:00:22]}  Rc8 {[%clk 0:00:26]} 21. Qb1 {[%clk 0:00:22]}  Nxd3 {[%clk 0:00:24]} 22. Qxd3 {[%clk 0:00:21]}  O-O {[%clk 0:00:22]} 23. b4 {[%clk 0:00:21]}  Nc4 {[%clk 0:00:21]} 24. Nxc4 {[%clk 0:00:20]}  Rxc4 {[%clk 0:00:22]} 25. Qg3 {[%clk 0:00:20]}  Kh8 {[%clk 0:00:19]} 26. Bb2 {[%clk 0:00:20]}  f6 {[%clk 0:00:17]} 27. Rac1 {[%clk 0:00:19]}  Rxc1 {[%clk 0:00:13]} 28. Rxc1 {[%clk 0:00:20]}  e5 {[%clk 0:00:13]} 29. h4 {[%clk 0:00:18]}  Qxd6 {[%clk 0:00:13]} 30. Rc5 {[%clk 0:00:16]}  d4 {[%clk 0:00:13]} 31. Qd3 {[%clk 0:00:15]}  Rd8 {[%clk 0:00:13]} 32. f3 {[%clk 0:00:14]}  Be6 {[%clk 0:00:12]} 33. a4 {[%clk 0:00:12]}  Bg8 {[%clk 0:00:12]} 34. a5 {[%clk 0:00:11]}  Bh7 {[%clk 0:00:12]} 35. Qd2 {[%clk 0:00:11]}  d3 {[%clk 0:00:13]} 36. Kf2 {[%clk 0:00:06]}  e4 {[%clk 0:00:13]} 37. fxe4 {[%clk 0:00:05]}  Bxe4 {[%clk 0:00:14]} 38. Kg1 {[%clk 0:00:03]}  Re8 {[%clk 0:00:14]} 39. Bc3 {[%clk 0:00:03]}  Qg3 {[%clk 0:00:13]} 40. Qf2 {[%clk 0:00:02]}  Qg6 {[%clk 0:00:13]} 41. h5 {[%clk 0:00:01]}  Qg4 {[%clk 0:00:13]} 42. Kh2 {[%clk 0:00:00]}  f5 {[%clk 0:00:11]} 0-1


[Site "https://www.chess.com"]

[Event "Titled Tuesday Blitz August 15 Late 2023"]
[White "Ozdemir, Serhan Berat"]
[Black "Tomb, Maroun"]
[WhiteFideId "6374611"]
[BlackFideId "5300398"]
[WhiteElo "2662"]
[BlackElo "2495"]
[Result "1-0"]
[Round "6"]
[TimeControl "180+1"]
[Date "2023.08.15"]
[WhiteClock "0:00:04"]
[BlackClock "0:00:00"]
[Board "56"]

1. e4 {[%clk 0:03:00]}  c5 {[%clk 0:03:00]} 2. Nf3 {[%clk 0:03:01]}  Nc6 {[%clk 0:02:59]} 3. Bb5 {[%clk 0:02:59]}  g6 {[%clk 0:02:59]} 4. Bxc6 {[%clk 0:02:59]}  dxc6 {[%clk 0:03:00]} 5. d3 {[%clk 0:03:00]}  Bg7 {[%clk 0:03:00]} 6. h3 {[%clk 0:03:01]}  Nf6 {[%clk 0:03:01]} 7. Nc3 {[%clk 0:03:01]}  Nd7 {[%clk 0:03:01]} 8. Be3 {[%clk 0:03:01]}  b6 {[%clk 0:03:01]} 9. Qd2 {[%clk 0:03:01]}  h5 {[%clk 0:03:00]} 10. O-O {[%clk 0:02:47]}  e5 {[%clk 0:02:58]} 11. Nh2 {[%clk 0:02:47]}  Nf8 {[%clk 0:02:58]} 12. f4 {[%clk 0:02:48]}  exf4 {[%clk 0:02:58]} 13. Bxf4 {[%clk 0:02:49]}  Ne6 {[%clk 0:02:58]} 14. Bg3 {[%clk 0:02:42]}  O-O {[%clk 0:02:49]} 15. Rae1 {[%clk 0:02:41]}  Nd4 {[%clk 0:02:44]} 16. e5 {[%clk 0:02:36]}  Bf5 {[%clk 0:02:37]} 17. Ne4 {[%clk 0:02:31]}  Bxe4 {[%clk 0:02:34]} 18. Rxe4 {[%clk 0:02:32]}  Qd5 {[%clk 0:02:23]} 19. Bf4 {[%clk 0:02:28]}  Rae8 {[%clk 0:02:22]} 20. Rfe1 {[%clk 0:02:25]}  Rd8 {[%clk 0:01:56]} 21. b3 {[%clk 0:02:20]}  Ne6 {[%clk 0:01:53]} 22. Bh6 {[%clk 0:02:19]}  b5 {[%clk 0:01:52]} 23. Nf3 {[%clk 0:02:16]}  Rfe8 {[%clk 0:01:33]} 24. g4 {[%clk 0:02:09]}  hxg4 {[%clk 0:01:32]} 25. hxg4 {[%clk 0:02:10]}  c4 {[%clk 0:01:25]} 26. bxc4 {[%clk 0:02:06]}  bxc4 {[%clk 0:01:24]} 27. Bxg7 {[%clk 0:02:01]}  Kxg7 {[%clk 0:01:24]} 28. Kg2 {[%clk 0:01:40]}  cxd3 {[%clk 0:01:23]} 29. Rh1 {[%clk 0:01:40]}  Rh8 {[%clk 0:01:23]} 30. Rxh8 {[%clk 0:01:39]}  Rxh8 {[%clk 0:01:24]} 31. cxd3 {[%clk 0:01:37]}  Rd8 {[%clk 0:01:08]} 32. Qc3 {[%clk 0:00:48]}  Qxd3 {[%clk 0:01:05]} 33. Qxc6 {[%clk 0:00:48]}  Rb8 {[%clk 0:00:49]} 34. Kg3 {[%clk 0:00:27]}  Rb1 {[%clk 0:00:35]} 35. Qc4 {[%clk 0:00:06]}  Qd1 {[%clk 0:00:16]} 36. Qe2 {[%clk 0:00:06]}  Qd5 {[%clk 0:00:15]} 37. Qc4 {[%clk 0:00:06]}  Qd1 {[%clk 0:00:13]} 38. Re2 {[%clk 0:00:06]}  Qh1 {[%clk 0:00:10]} 39. Qe4 {[%clk 0:00:02]}  Ng5 {[%clk 0:00:04]} 40. Nxg5 {[%clk 0:00:03]}  Rg1+ {[%clk 0:00:04]} 41. Kf4 {[%clk 0:00:03]}  Rf1+ {[%clk 0:00:04]} 42. Nf3 {[%clk 0:00:04]}  Qh2+ {[%clk 0:00:04]} 43. Ke3 {[%clk 0:00:02]}  Qg3 {[%clk 0:00:03]} 44. Qf4 {[%clk 0:00:03]}  Rxf3+ {[%clk 0:00:03]} 45. Qxf3 {[%clk 0:00:03]}  Qxe5+ {[%clk 0:00:03]} 46. Kf2 {[%clk 0:00:04]}  Qd4+ {[%clk 0:00:03]} 47. Kg2 {[%clk 0:00:04]}  Kh7 {[%clk 0:00:00]} 48. Rf2 {[%clk 0:00:04]} 1-0


[Site "https://www.chess.com"]

[Event "Titled Tuesday Blitz August 15 Late 2023"]
[White "Gurevich, Dmitry"]
[Black "Mendez Fortes, Eduardo Jesus"]
[WhiteFideId "2000407"]
[BlackFideId "3502376"]
[WhiteElo "2472"]
[BlackElo "2614"]
[Result "1-0"]
[Round "6"]
[TimeControl "180+1"]
[Date "2023.08.15"]
[WhiteClock "0:00:03"]
[BlackClock "0:00:07"]
[Board "60"]

1. d4 {[%clk 0:03:00]}  Nf6 {[%clk 0:02:59]} 2. c4 {[%clk 0:02:59]}  e6 {[%clk 0:02:59]} 3. Nc3 {[%clk 0:02:58]}  Bb4 {[%clk 0:03:00]} 4. a3 {[%clk 0:02:58]}  Bxc3+ {[%clk 0:03:00]} 5. bxc3 {[%clk 0:02:59]}  c5 {[%clk 0:02:59]} 6. e3 {[%clk 0:02:59]}  d6 {[%clk 0:02:58]} 7. Bd3 {[%clk 0:02:58]}  Nc6 {[%clk 0:02:55]} 8. Ne2 {[%clk 0:02:58]}  b6 {[%clk 0:02:56]} 9. O-O {[%clk 0:02:55]}  Na5 {[%clk 0:02:55]} 10. Ng3 {[%clk 0:02:49]}  Ba6 {[%clk 0:02:53]} 11. e4 {[%clk 0:02:48]}  e5 {[%clk 0:02:49]} 12. d5 {[%clk 0:02:44]}  Qd7 {[%clk 0:02:47]} 13. Bg5 {[%clk 0:02:39]}  O-O-O {[%clk 0:02:43]} 14. Bxf6 {[%clk 0:02:38]}  gxf6 {[%clk 0:02:43]} 15. Nf5 {[%clk 0:02:38]}  Bxc4 {[%clk 0:02:39]} 16. a4 {[%clk 0:02:32]}  Bb3 {[%clk 0:02:23]} 17. Qe2 {[%clk 0:02:12]}  Bxa4 {[%clk 0:02:23]} 18. Nxd6+ {[%clk 0:02:11]}  Qxd6 {[%clk 0:02:22]} 19. Rxa4 {[%clk 0:02:11]}  Kd7 {[%clk 0:02:17]} 20. Rfa1 {[%clk 0:02:04]}  Ke7 {[%clk 0:02:16]} 21. Qf3 {[%clk 0:01:59]}  h5 {[%clk 0:02:11]} 22. h4 {[%clk 0:01:58]}  Qd7 {[%clk 0:02:07]} 23. g3 {[%clk 0:01:54]}  Rdg8 {[%clk 0:02:04]} 24. Kh2 {[%clk 0:01:53]}  Rg4 {[%clk 0:01:59]} 25. Bf1 {[%clk 0:01:49]}  Rg7 {[%clk 0:01:45]} 26. Bh3 {[%clk 0:01:49]}  Qc7 {[%clk 0:01:45]} 27. Bf5 {[%clk 0:01:41]}  Rgg8 {[%clk 0:01:43]} 28. Rd1 {[%clk 0:01:36]}  Qd6 {[%clk 0:01:40]} 29. Qe2 {[%clk 0:01:34]}  Ra8 {[%clk 0:01:35]} 30. Rda1 {[%clk 0:01:31]}  a6 {[%clk 0:01:30]} 31. Rb1 {[%clk 0:01:27]}  c4 {[%clk 0:01:11]} 32. Rxa5 {[%clk 0:01:11]}  bxa5 {[%clk 0:01:11]} 33. Rb7+ {[%clk 0:01:10]}  Kf8 {[%clk 0:01:08]} 34. Qb2 {[%clk 0:01:04]}  Kg7 {[%clk 0:01:04]} 35. Be6 {[%clk 0:01:01]}  Rhf8 {[%clk 0:01:03]} 36. Qe2 {[%clk 0:00:54]}  Rab8 {[%clk 0:00:59]} 37. Rd7 {[%clk 0:00:53]}  Qb6 {[%clk 0:00:53]} 38. Kg2 {[%clk 0:00:45]}  Rbd8 {[%clk 0:00:43]} 39. Qxh5 {[%clk 0:00:29]}  Rxd7 {[%clk 0:00:43]} 40. Bxd7 {[%clk 0:00:25]}  Rd8 {[%clk 0:00:37]} 41. Ba4 {[%clk 0:00:20]}  Kf8 {[%clk 0:00:36]} 42. Qf5 {[%clk 0:00:19]}  Ke7 {[%clk 0:00:36]} 43. h5 {[%clk 0:00:19]}  Qd6 {[%clk 0:00:20]} 44. h6 {[%clk 0:00:18]}  Qc7 {[%clk 0:00:19]} 45. Qg4 {[%clk 0:00:14]}  Qc8 {[%clk 0:00:18]} 46. Qh5 {[%clk 0:00:12]}  Rh8 {[%clk 0:00:17]} 47. d6+ {[%clk 0:00:11]}  Ke6 {[%clk 0:00:14]} 48. d7 {[%clk 0:00:09]}  Qd8 {[%clk 0:00:14]} 49. Qd1 {[%clk 0:00:05]}  Qc7 {[%clk 0:00:13]} 50. Qd5+ {[%clk 0:00:05]}  Ke7 {[%clk 0:00:13]} 51. Qd1 {[%clk 0:00:04]}  Qd6 {[%clk 0:00:11]} 52. Qg4 {[%clk 0:00:04]}  Qe6 {[%clk 0:00:09]} 53. Qg7 {[%clk 0:00:03]}  Rb8 {[%clk 0:00:08]} 54. h7 {[%clk 0:00:03]}  f5 {[%clk 0:00:08]} 55. h8=Q {[%clk 0:00:04]}  Rxh8 {[%clk 0:00:08]} 56. Qxh8 {[%clk 0:00:04]}  Qd6 {[%clk 0:00:09]} 57. Qe8+ {[%clk 0:00:03]}  Kf6 {[%clk 0:00:07]} 58. d8=Q+ {[%clk 0:00:03]} 1-0


[Site "https://www.chess.com"]

[Event "Titled Tuesday Blitz August 15 Late 2023"]
[White "Caspi, Israel"]
[Black "Vafin, Ayrat"]
[WhiteFideId "2807394"]
[BlackFideId "4146530"]
[WhiteElo "2599"]
[BlackElo "2438"]
[Result "0-1"]
[Round "6"]
[TimeControl "180+1"]
[Date "2023.08.15"]
[WhiteClock "0:02:24"]
[BlackClock "0:01:49"]
[Board "64"]

1. e4 {[%clk 0:02:58]}  e5 {[%clk 0:03:00]} 2. Nf3 {[%clk 0:02:58]}  Nf6 {[%clk 0:03:00]} 3. Nc3 {[%clk 0:02:54]}  Bb4 {[%clk 0:02:59]} 4. Nxe5 {[%clk 0:02:51]}  O-O {[%clk 0:03:00]} 5. Nd3 {[%clk 0:02:48]}  Bxc3 {[%clk 0:03:00]} 6. dxc3 {[%clk 0:02:49]}  Nxe4 {[%clk 0:03:00]} 7. Be2 {[%clk 0:02:49]}  Re8 {[%clk 0:03:00]} 8. O-O {[%clk 0:02:50]}  d6 {[%clk 0:03:01]} 9. c4 {[%clk 0:02:50]}  Nd7 {[%clk 0:03:01]} 10. b3 {[%clk 0:02:49]}  Nc3 {[%clk 0:02:57]} 11. Qd2 {[%clk 0:02:49]}  Nxe2+ {[%clk 0:02:56]} 12. Kh1 {[%clk 0:02:49]}  Nxc1 {[%clk 0:02:56]} 13. Raxc1 {[%clk 0:02:50]}  Nc5 {[%clk 0:02:52]} 14. Nf4 {[%clk 0:02:50]}  Bf5 {[%clk 0:02:49]} 15. f3 {[%clk 0:02:50]}  Qg5 {[%clk 0:02:40]} 16. g4 {[%clk 0:02:49]}  Ne6 {[%clk 0:02:27]} 17. gxf5 {[%clk 0:02:42]}  Qxf4 {[%clk 0:02:26]} 18. Qd5 {[%clk 0:02:38]}  Ng5 {[%clk 0:02:25]} 19. Qxb7 {[%clk 0:02:36]}  Rab8 {[%clk 0:02:13]} 20. Qxc7 {[%clk 0:02:36]}  Nxf3 {[%clk 0:02:09]} 21. Kg2 {[%clk 0:02:35]}  Nh4+ {[%clk 0:01:52]} 22. Kh3 {[%clk 0:02:24]}  Re3+ {[%clk 0:01:49]} 23. Rf3 {[%clk 0:02:24]}  Rxf3# {[%clk 0:01:49]} 0-1


[Site "https://www.chess.com"]